fUST/lending_fUST_20251219
["ID","MTS","AMOUNT","RATE_DAILY","PERIOD"]
[399021506,1766073924403,-500.0,0.00049315,120]
[399021507,1766073924480,-500.0,0.00049315,120]
[399021509,1766073924561,-500.0,0.00049315,120]
[399021511,1766073924636,-500.0,0.00049315,120]
[399021513,1766073924710,-500.0,0.00049315,120]
[399021515,1766073924783,-500.0,0.00049315,120]
[399021517,1766073924858,-500.0,0.00049315,120]
[399021519,1766073924935,-559.24,0.00049315,120]
[399021521,1766073925010,-500.0,0.00049315,120]
[399021523,1766073925088,-500.0,0.00049315,120]
[399021525,1766073925165,-500.0,0.00049315,120]
[399021527,1766073925244,-500.0,0.00049315,120]
[399021529,1766073925320,-500.0,0.00049315,120]
[399021531,1766073925391,-1402.6,0.00049315,120]
[399021533,1766073925461,-500.0,0.00049315,120]
[399021535,1766073925532,-974.43,0.00049315,120]
[399021538,1766073925604,-289.8,0.00049315,120]
[399021540,1766073925677,-689.6,0.00049315,120]
[399021541,1766073925751,-500.0,0.00049315,120]
[399021543,1766073925830,-500.0,0.00049315,120]
[399021545,1766073925904,-500.0,0.00049315,60]
[399021547,1766073925978,-500.0,0.00049315,120]
[399021550,1766073926054,-502.06056247,0.00049315,120]
[399021552,1766073926154,-500.07571558,0.00049315,120]
[399021553,1766073926234,-500.0,0.00049315,120]
[399021555,1766073926311,-500.0,0.00049315,120]
[399021558,1766073926390,-500.0,0.00049315,120]
[399021559,1766073926473,-500.0,0.00049315,120]
[399021562,1766073926549,-278.42,0.00049315,120]
[399021563,1766073926625,-500.0,0.00049315,120]
[399021565,1766073926703,-500.0,0.00049315,120]
[399021567,1766073926775,-1215.57,0.00049315,120]
[399021570,1766073926857,-500.0,0.00049315,120]
[399021571,1766073926930,-500.0,0.00049315,120]
[399021573,1766073927001,-500.0,0.00049315,120]
[399021575,1766073927078,-151.0,0.00049315,120]
[399021577,1766073927155,-500.0,0.00049315,120]
[399021579,1766073927236,-781.69,0.00049315,120]
[399021581,1766073927318,-151.0,0.00049315,120]
[399021583,1766073927398,-500.0,0.00049315,120]
[399021585,1766073927477,-500.0,0.00049315,120]
[399021587,1766073927556,-500.0,0.00049315,120]
[399021591,1766073927716,-500.0,0.00049315,120]
[399021592,1766073927792,-500.0,0.00049315,120]
[399021594,1766073927867,-500.0,0.00049315,120]
[399021596,1766073927945,-500.0,0.00049315,120]
[399021598,1766073928015,-500.0,0.00049315,120]
[399021599,1766073928083,-500.0,0.00049315,120]
[399021600,1766073928154,-500.0,0.00049315,120]
[399021601,1766073928225,-500.0,0.00049315,30]
[399021602,1766073928294,-500.0,0.00049315,120]
[399021603,1766073928365,-500.0,0.00049315,120]
[399021604,1766073928438,-500.0,0.00049315,60]
[399021605,1766073928504,-500.0,0.00049315,120]
[399021606,1766073928571,-500.0,0.00049315,120]
[399021607,1766073928640,-459.39016153,0.00049315,120]
[399021608,1766073928708,-500.0,0.00049315,120]
[399021609,1766073928774,-500.0,0.00049315,120]
[399021610,1766073928844,-759.02,0.00049315,120]
[399021611,1766073928913,-500.0,0.00049315,120]
[399021612,1766073928981,-500.0,0.00049315,120]
[399021613,1766073929050,-744.8,0.00049315,120]
[399021614,1766073929119,-945.09,0.00049315,120]
[399021615,1766073929187,-838.64,0.00049315,120]
[399021616,1766073929255,-1065.36,0.00049315,120]
[399021617,1766073929326,-980.6,0.00049315,120]
[399021618,1766073929397,-500.0,0.00049315,120]
[399021619,1766073929469,-994.32,0.00049315,120]
[399021620,1766073929538,-500.0,0.00049315,120]
[399021621,1766073929620,-500.0,0.00049315,120]
[399021623,1766073929711,-500.0,0.00049315,120]
[399021625,1766073929798,-1041.43,0.00049315,120]
[399021628,1766073929884,-500.0,0.00049315,120]
[399021630,1766073929974,-500.0,0.00049315,120]
[399021632,1766073930055,-500.0,0.00049315,120]
[399021634,1766073930146,-500.0,0.00049315,120]
[399021636,1766073930230,-500.0,0.00049315,120]
[399021638,1766073930310,-500.0,0.00049315,120]
[399021640,1766073930391,-500.0,0.00049315,120]
[399021643,1766073930473,-500.0,0.00049315,120]
[399021645,1766073930545,-505.53,0.00049315,120]
[399021647,1766073930626,-444.82831366,0.00049315,120]
[399021649,1766073930704,-500.0,0.00049315,30]
[399021651,1766073930781,-151.0,0.00049315,120]
[399021653,1766073930850,-500.0,0.00049315,120]
[399021655,1766073930916,-1246.38,0.00049315,120]
[399021657,1766073930977,-151.0,0.00049315,120]
[399021658,1766073931048,-500.0,0.00049315,120]
[399021661,1766073931126,-500.0,0.00049315,120]
[399021662,1766073931206,-151.0,0.00049315,120]
[399021665,1766073931284,-500.0,0.00049315,120]
[399021667,1766073931364,-247.844576,0.00049315,120]
[399021668,1766073931442,-1059.53,0.00049315,120]
[399021671,1766073931520,-500.0,0.00049315,120]
[399021672,1766073931600,-500.0,0.00049315,120]
[399021674,1766073931682,-522.68391859,0.00049315,120]
[399021676,1766073931761,-496.84809073,0.00049315,120]
[399021683,1766073932139,-500.0,0.00049315,120]
[399021685,1766073932226,-500.0,0.00049315,120]
[399021687,1766073932297,-500.0,0.00049315,120]
[399021689,1766073932366,-500.0,0.00049315,120]
[399021691,1766073932444,-500.0,0.00049315,120]
[399021693,1766073932509,-1516.26,0.00049315,120]
[399021695,1766073932564,-500.0,0.00049315,120]
[399021696,1766073932636,-500.0,0.00049315,120]
[399021698,1766073932709,-633.74,0.00049315,120]
[399021700,1766073932781,-500.0,0.00049315,120]
[399021703,1766073932859,-500.0,0.00049315,120]
[399021705,1766073932936,-500.0,0.00049315,120]
[399021706,1766073933014,-500.0,0.00049315,120]
[399021708,1766073933089,-500.0,0.00049315,120]
[399021710,1766073933169,-500.0,0.00049315,120]
[399021712,1766073933248,-500.0,0.00049315,120]
[399021714,1766073933326,-500.0,0.00049315,120]
[399021716,1766073933403,-500.0,0.00049315,120]
[399021718,1766073933472,-500.0,0.00049315,120]
[399021720,1766073933543,-1055.33,0.00049315,120]
[399021722,1766073933620,-500.0,0.00049315,120]
[399021724,1766073933693,-500.0,0.00049315,120]
[399021726,1766073933767,-500.0,0.00049315,30]
[399021728,1766073933843,-500.0,0.00049315,120]
[399021730,1766073933921,-500.0,0.00049315,120]
[399021732,1766073933997,-497.4597942,0.00049315,120]
[399021734,1766073934077,-151.0,0.00049315,120]
[399021736,1766073934163,-500.0,0.00049315,120]
[399021739,1766073934243,-482.29159903,0.00049315,120]
[399021740,1766073934319,-747.87,0.00049315,120]
[399021742,1766073934393,-500.0,0.00049315,120]
[399021745,1766073934470,-500.0,0.00049315,120]
[399021746,1766073934547,-183.33,0.00049315,120]
[399021748,1766073934623,-759.84,0.00049315,120]
[399021750,1766073934697,-500.0,0.00049315,120]
[399021752,1766073934770,-1672.469075,0.00049315,120]
[399021754,1766073934844,-500.0,0.00049315,120]
[399021756,1766073934920,-500.0,0.00049315,120]
[399021759,1766073934995,-500.0,0.00049315,120]
[399021760,1766073935069,-530.32,0.00049315,120]
[399021762,1766073935151,-500.0,0.00049315,120]
[399021765,1766073935229,-151.0,0.00049315,120]
[399021766,1766073935307,-500.0,0.00049315,120]
[399021768,1766073935388,-500.0,0.00049315,120]
[399021771,1766073935468,-151.0,0.00049315,30]
[399021772,1766073935548,-717.47,0.00049315,120]
[399021774,1766073935628,-500.0,0.00049315,120]
[399021776,1766073935707,-500.0,0.00049315,120]
[399021778,1766073935785,-500.0,0.00049315,120]
[399021780,1766073935862,-151.0,0.00049315,120]
[399021782,1766073935941,-500.0,0.00049315,120]
[399021784,1766073936021,-524.68,0.00049315,120]
[399021786,1766073936099,-500.0,0.00049315,120]
[399021788,1766073936180,-500.0,0.00049315,120]
[399021790,1766073936265,-500.0,0.00049315,120]
[399021793,1766073936347,-500.0,0.00049315,120]
[399021795,1766073936432,-510.63,0.00049315,120]
[399021796,1766073936517,-500.0,0.00049315,120]
[399021799,1766073936601,-500.0,0.00049315,120]
[399021800,1766073936676,-502.82858912,0.00049315,120]
[399021801,1766073936759,-500.0,0.00049315,120]
[399021802,1766073936840,-607.77,0.00049315,120]
[399021804,1766073936922,-1890.73,0.00049315,120]
[399021805,1766073937001,-1675.2,0.00049315,120]
[399021809,1766073937210,-500.0,0.00049315,120]
[399021811,1766073937281,-500.0,0.00049315,120]
[399021813,1766073937361,-500.0,0.00049315,120]
[399021815,1766073937432,-500.0,0.00049315,120]
[399021817,1766073937500,-500.0,0.00049315,120]
[399021819,1766073937569,-1312.82,0.00049315,120]
[399021821,1766073937638,-755.01,0.00049315,120]
[399021823,1766073937703,-500.0,0.00049315,120]
[399021825,1766073937770,-500.0,0.00049315,120]
[399021828,1766073937843,-500.0,0.00049315,120]
[399021830,1766073937922,-500.0,0.00049315,120]
[399021832,1766073937996,-500.0,0.00049315,120]
[399021833,1766073938080,-500.0,0.00049315,120]
[399021836,1766073938155,-874.86,0.00049315,120]
[399021838,1766073938239,-500.0,0.00049315,120]
[399021840,1766073938315,-500.0,0.00049315,120]
[399021841,1766073938391,-500.0,0.00049315,120]
[399021843,1766073938468,-500.0,0.00049315,120]
[399021845,1766073938545,-500.0,0.00049315,120]
[399021847,1766073938621,-5311.26,0.00049315,120]
[399021849,1766073938691,-500.0,0.00049315,120]
[399021851,1766073938763,-150.0,0.00049851,120]
[399021853,1766073938832,-177.0,0.00051851,120]
[399021855,1766073938901,-5076.98141496,0.00052,120]
[399021857,1766073938971,-244.438,0.00052004,94]
[399021859,1766073939045,-500.0,0.00052054,120]
[399021862,1766073939121,-500.0,0.00052054,120]
[399021863,1766073939200,-500.0,0.00052054,120]
[399021866,1766073939281,-500.0,0.00052054,120]
[399021867,1766073939359,-607.13,0.00052054,120]
[399021869,1766073939437,-500.0,0.00052054,120]
[399021872,1766073939512,-500.0,0.00052054,120]
[399021873,1766073939584,-500.0,0.00052054,120]
[399021875,1766073939658,-500.0,0.00052054,120]
[399021877,1766073939733,-993.45,0.00052054,120]
[399021879,1766073939810,-500.0,0.00052054,120]
[399021881,1766073939888,-500.0,0.00052054,120]
[399021883,1766073939964,-500.0,0.00052054,120]
[399021885,1766073940041,-1386.79,0.00052054,120]
[399021888,1766073940118,-500.0,0.00052054,120]
[399021890,1766073940196,-375.85019173,0.00052054,120]
[399021891,1766073940273,-500.0,0.00052054,120]
[399021894,1766073940349,-642.29,0.00052054,120]
[399021895,1766073940424,-500.0,0.00052054,120]
[399021897,1766073940500,-500.0,0.00052054,120]
[399021899,1766073940577,-500.0,0.00052054,120]
[399021901,1766073940657,-500.0,0.00052054,120]
[399021903,1766073940733,-500.0,0.00052054,120]
[399021905,1766073940808,-500.0,0.00052054,120]
[399021907,1766073940881,-500.0,0.00052054,120]
[399021910,1766073940956,-500.0,0.00052054,120]
[399021911,1766073941032,-500.0,0.00052054,120]
[399021913,1766073941103,-559.24,0.00052054,120]
[399021915,1766073941179,-500.0,0.00052054,120]
[399021918,1766073941254,-500.0,0.00052054,120]
[399021919,1766073941325,-500.0,0.00052054,120]
[399021921,1766073941399,-500.0,0.00052054,120]
[399021923,1766073941468,-500.0,0.00052054,120]
[399021926,1766073941554,-1402.6,0.00052054,120]
[399021927,1766073941633,-500.0,0.00052054,120]
[399021929,1766073941706,-974.43,0.00052054,120]
[399021931,1766073941778,-689.6,0.00052054,120]
[399021933,1766073941857,-500.0,0.00052054,120]
[399021935,1766073941929,-500.0,0.00052054,120]
[399021937,1766073942007,-500.0,0.00052054,60]
[399021939,1766073942085,-500.0,0.00052054,120]
[399021941,1766073942161,-500.0,0.00052054,120]
[399021943,1766073942235,-500.0,0.00052054,120]
[399021945,1766073942310,-500.0,0.00052054,120]
[399021947,1766073942386,-500.0,0.00052054,120]
[399021950,1766073942464,-316.5,0.00052054,120]
[399021951,1766073942540,-575.26,0.00052054,120]
[399021953,1766073942618,-1215.57,0.00052054,120]
[399021955,1766073942692,-500.0,0.00052054,120]
[399021957,1766073942767,-500.0,0.00052054,120]
[399021959,1766073942838,-500.0,0.00052054,120]
[399021961,1766073942905,-580.73,0.00052054,120]
[399021963,1766073942973,-781.69,0.00052054,120]
[399021965,1766073943046,-585.36386798,0.00052054,120]
[399021967,1766073943122,-500.0,0.00052054,120]
[399021969,1766073943198,-500.0,0.00052054,120]
[399021971,1766073943272,-500.0,0.00052054,120]
[399021973,1766073943351,-500.0,0.00052054,120]
[399021976,1766073943439,-500.0,0.00052054,120]
[399021977,1766073943519,-500.0,0.00052054,120]
[399021979,1766073943590,-500.0,0.00052054,120]
[399021981,1766073943663,-500.0,0.00052054,120]
[399021983,1766073943737,-500.0,0.00052054,120]
[399021985,1766073943813,-500.0,0.00052054,120]
[399021987,1766073943891,-500.0,0.00052054,30]
[399021990,1766073944078,-500.0,0.00052054,120]
[399021991,1766073944154,-367.53095484,0.00052054,60]
[399021992,1766073944224,-500.0,0.00052054,120]
[399021993,1766073944293,-500.0,0.00052054,120]
[399021994,1766073944362,-759.02,0.00052054,120]
[399021995,1766073944432,-500.0,0.00052054,120]
[399021997,1766073944501,-500.0,0.00052054,120]
[399021998,1766073944557,-744.8,0.00052054,120]
[399022000,1766073944632,-945.09,0.00052054,120]
[399022002,1766073944709,-838.64,0.00052054,120]
[399022005,1766073944788,-1065.36,0.00052054,120]
[399022006,1766073944865,-980.6,0.00052054,120]
[399022009,1766073944947,-453.97,0.00052054,120]
[399022010,1766073945034,-994.32,0.00052054,120]
[399022012,1766073945118,-500.0,0.00052054,120]
[399022015,1766073945198,-1041.43,0.00052054,120]
[399022016,1766073945276,-500.0,0.00052054,120]
[399022018,1766073945352,-500.0,0.00052054,120]
[399022021,1766073945436,-500.0,0.00052054,120]
[399022022,1766073945515,-500.0,0.00052054,120]
[399022024,1766073945592,-500.0,0.00052054,120]
[399022026,1766073945669,-500.0,0.00052054,120]
[399022028,1766073945746,-500.0,0.00052054,120]
[399022030,1766073945824,-505.53,0.00052054,120]
[399022032,1766073945903,-500.0,0.00052054,30]
[399022034,1766073945983,-500.0,0.00052054,120]
[399022036,1766073946064,-1246.38,0.00052054,120]
[399022038,1766073946149,-500.0,0.00052054,120]
[399022040,1766073946224,-500.0,0.00052054,120]
[399022042,1766073946303,-500.0,0.00052054,120]
[399022044,1766073946384,-1059.53,0.00052054,120]
[399022046,1766073946460,-500.0,0.00052054,120]
[399022048,1766073946538,-500.0,0.00052054,120]
[399022050,1766073946620,-500.0,0.00052054,120]
[399022052,1766073946701,-500.0,0.00052054,120]
[399022054,1766073946779,-500.0,0.00052054,120]
[399022056,1766073946859,-500.0,0.00052054,120]
[399022059,1766073946938,-500.0,0.00052054,120]
[399022060,1766073947016,-1516.26,0.00052054,120]
[399022062,1766073947096,-500.0,0.00052054,120]
[399022064,1766073947176,-500.0,0.00052054,120]
[399022066,1766073947254,-633.74,0.00052054,120]
[399022068,1766073947328,-645.83,0.00052054,120]
[399022070,1766073947404,-500.0,0.00052054,120]
[399022072,1766073947480,-500.0,0.00052054,120]
[399022074,1766073947560,-500.0,0.00052054,120]
[399022076,1766073947637,-500.0,0.00052054,120]
[399022078,1766073947712,-500.0,0.00052054,120]
[399022080,1766073947791,-500.0,0.00052054,120]
[399022082,1766073947866,-605.24940043,0.00052054,120]
[399022084,1766073947941,-500.0,0.00052054,120]
[399022086,1766073948019,-500.0,0.00052054,120]
[399022088,1766073948093,-1055.33,0.00052054,120]
[399022090,1766073948171,-500.0,0.00052054,120]
[399022092,1766073948244,-242.12187522,0.00052054,120]
[399022094,1766073948322,-500.0,0.00052054,30]
[399022096,1766073948398,-500.0,0.00052054,120]
[399022098,1766073948475,-602.77,0.00052054,120]
[399022100,1766073948551,-500.0,0.00052054,120]
[399022102,1766073948624,-747.87,0.00052054,120]
[399022104,1766073948697,-583.44124634,0.00052054,120]
[399022106,1766073948769,-500.0,0.00052054,120]
[399022108,1766073948842,-759.84,0.00052054,120]
[399022110,1766073948919,-500.0,0.00052054,120]
[399022112,1766073948989,-1672.469075,0.00052054,120]
[399022114,1766073949055,-500.0,0.00052054,120]
[399022116,1766073949128,-500.0,0.00052054,120]
[399022118,1766073949201,-500.0,0.00052054,120]
[399022120,1766073949270,-530.32,0.00052054,120]
[399022122,1766073949337,-500.0,0.00052054,120]
[399022124,1766073949397,-500.0,0.00052054,120]
[399022126,1766073949476,-717.47,0.00052054,120]
[399022127,1766073949555,-500.0,0.00052054,120]
[399022129,1766073949628,-500.0,0.00052054,120]
[399022131,1766073949704,-500.0,0.00052054,120]
[399022133,1766073949777,-500.0,0.00052054,120]
[399022135,1766073949848,-524.68,0.00052054,120]
[399022137,1766073949923,-500.0,0.00052054,120]
[399022139,1766073949999,-500.0,0.00052054,120]
[399022141,1766073950076,-500.0,0.00052054,120]
[399022143,1766073950153,-500.0,0.00052054,120]
[399022145,1766073950229,-510.63,0.00052054,120]
[399022148,1766073950306,-500.0,0.00052054,120]
[399022149,1766073950380,-607.77,0.00052054,120]
[399022151,1766073950458,-1890.73,0.00052054,120]
[399022153,1766073950532,-1675.2,0.00052054,120]
[399022155,1766073950605,-500.84909802,0.00052054,120]
[399022157,1766073950680,-500.0,0.00052054,120]
[399022159,1766073950755,-500.0,0.00052054,120]
[399022161,1766073950830,-601.10117223,0.00052054,120]
[399022163,1766073950905,-500.0,0.00052054,120]
[399022165,1766073950982,-1312.82,0.00052054,120]
[399022167,1766073951061,-755.01,0.00052054,120]
[399022169,1766073951141,-500.0,0.00052054,120]
[399022173,1766073951328,-500.0,0.00052054,120]
[399022175,1766073951401,-500.0,0.00052054,120]
[399022177,1766073951473,-390.06455277,0.00052054,120]
[399022179,1766073951544,-500.0,0.00052054,120]
[399022181,1766073951607,-500.0,0.00052054,120]
[399022182,1766073951679,-874.86,0.00052054,120]
[399022184,1766073951750,-500.0,0.00052054,120]
[399022185,1766073951822,-500.0,0.00052054,120]
[399022186,1766073951891,-503.68998927,0.00052054,120]
[399022187,1766073951964,-500.0,0.00052054,120]
[399022188,1766073952039,-5311.26,0.00052054,120]
[399022189,1766073952116,-500.0,0.00052054,120]
[399022192,1766073952200,-204.0,0.00053851,120]
[399022194,1766073952280,-153.0,0.0005474,30]
[399022195,1766073952360,-153.0,0.0005474,30]
[399022198,1766073952442,-153.0,0.0005474,30]
[399022199,1766073952523,-500.0,0.00054794,120]
[399022202,1766073952602,-445.33710736,0.00054794,120]
[399022204,1766073952680,-500.0,0.00054794,120]
[399022205,1766073952757,-578.14,0.00054794,120]
[399022207,1766073952834,-503.88868361,0.00054794,120]
[399022209,1766073952911,-500.0,0.00054794,120]
[399022211,1766073952990,-993.45,0.00054794,120]
[399022214,1766073953075,-500.0,0.00054794,120]
[399022215,1766073953165,-574.63,0.00054794,120]
[399022218,1766073953257,-1386.79,0.00054794,120]
[399022220,1766073953347,-178.18,0.00054794,120]
[399022221,1766073953433,-500.0,0.00054794,120]
[399022223,1766073953521,-642.29,0.00054794,120]
[399022225,1766073953608,-500.0,0.00054794,120]
[399022227,1766073953696,-500.0,0.00054794,120]
[399022230,1766073953776,-500.0,0.00054794,120]
[399022231,1766073953858,-500.0,0.00054794,120]
[399022234,1766073953939,-500.0,0.00054794,120]
[399022235,1766073954019,-500.0,0.00054794,120]
[399022237,1766073954101,-500.0,0.00054794,120]
[399022240,1766073954181,-500.0,0.00054794,120]
[399022241,1766073954260,-500.0,0.00054794,120]
[399022243,1766073954338,-559.24,0.00054794,120]
[399022246,1766073954423,-500.0,0.00054794,120]
[399022247,1766073954504,-648.25,0.00054794,120]
[399022249,1766073954583,-500.0,0.00054794,120]
[399022252,1766073954660,-500.0,0.00054794,120]
[399022253,1766073954736,-1402.6,0.00054794,120]
[399022255,1766073954813,-500.0,0.00054794,120]
[399022257,1766073954893,-974.43,0.00054794,120]
[399022260,1766073954972,-689.6,0.00054794,120]
[399022261,1766073955053,-500.0,0.00054794,120]
[399022263,1766073955135,-500.0,0.00054794,60]
[399022265,1766073955216,-563.5,0.00054794,120]
[399022267,1766073955298,-500.0,0.00054794,120]
[399022269,1766073955378,-500.0,0.00054794,120]
[399022271,1766073955456,-500.0,0.00054794,120]
[399022273,1766073955536,-1215.57,0.00054794,120]
[399022275,1766073955616,-500.0,0.00054794,120]
[399022278,1766073955695,-500.0,0.00054794,120]
[399022279,1766073955774,-500.0,0.00054794,120]
[399022282,1766073955854,-781.69,0.00054794,120]
[399022283,1766073955927,-500.0,0.00054794,120]
[399022286,1766073956006,-500.0,0.00054794,120]
[399022287,1766073956086,-500.0,0.00054794,120]
[399022289,1766073956161,-500.0,0.00054794,120]
[399022291,1766073956239,-596.43,0.00054794,120]
[399022294,1766073956319,-500.0,0.00054794,120]
[399022295,1766073956401,-500.0,0.00054794,120]
[399022297,1766073956485,-500.0,0.00054794,120]
[399022299,1766073956566,-500.0,0.00054794,120]
[399022301,1766073956647,-500.0,0.00054794,120]
[399022303,1766073956726,-500.0,0.00054794,30]
[399022305,1766073956807,-500.0,0.00054794,120]
[399022308,1766073956888,-500.0,0.00054794,120]
[399022309,1766073956971,-500.0,0.00054794,120]
[399022311,1766073957054,-759.02,0.00054794,120]
[399022313,1766073957134,-426.81,0.00054794,120]
[399022315,1766073957213,-500.0,0.00054794,120]
[399022317,1766073957291,-744.8,0.00054794,120]
[399022319,1766073957369,-945.09,0.00054794,120]
[399022322,1766073957451,-838.64,0.00054794,120]
[399022323,1766073957530,-1065.36,0.00054794,120]
[399022325,1766073957608,-980.6,0.00054794,120]
[399022327,1766073957687,-994.32,0.00054794,120]
[399022329,1766073957763,-500.0,0.00054794,120]
[399022331,1766073957841,-1041.43,0.00054794,120]
[399022333,1766073957921,-500.0,0.00054794,120]
[399022335,1766073958001,-500.0,0.00054794,120]
[399022337,1766073958082,-500.0,0.00054794,120]
[399022339,1766073958162,-500.0,0.00054794,120]
[399022341,1766073958242,-500.0,0.00054794,120]
[399022343,1766073958320,-505.53,0.00054794,120]
[399022345,1766073958401,-500.0,0.00054794,30]
[399022347,1766073958478,-500.0,0.00054794,120]
[399022350,1766073958555,-1246.38,0.00054794,120]
[399022352,1766073958631,-500.0,0.00054794,120]
[399022353,1766073958707,-500.0,0.00054794,120]
[399022357,1766073958897,-1059.53,0.00054794,120]
[399022359,1766073958969,-500.0,0.00054794,120]
[399022361,1766073959037,-500.0,0.00054794,120]
[399022363,1766073959104,-358.29728535,0.00054794,120]
[399022365,1766073959175,-500.0,0.00054794,120]
[399022367,1766073959247,-498.72,0.00054794,120]
[399022368,1766073959310,-500.0,0.00054794,120]
[399022370,1766073959389,-1516.26,0.00054794,120]
[399022372,1766073959469,-500.0,0.00054794,120]
[399022374,1766073959550,-500.0,0.00054794,120]
[399022376,1766073959631,-633.74,0.00054794,120]
[399022377,1766073959699,-500.0,0.00054794,120]
[399022378,1766073959766,-500.0,0.00054794,120]
[399022379,1766073959834,-500.0,0.00054794,120]
[399022381,1766073959900,-500.0,0.00054794,120]
[399022382,1766073959969,-500.0,0.00054794,120]
[399022384,1766073960037,-500.0,0.00054794,120]
[399022386,1766073960109,-500.0,0.00054794,120]
[399022388,1766073960184,-500.0,0.00054794,120]
[399022390,1766073960261,-1055.33,0.00054794,120]
[399022392,1766073960336,-500.0,0.00054794,120]
[399022394,1766073960413,-500.0,0.00054794,30]
[399022396,1766073960484,-500.0,0.00054794,120]
[399022398,1766073960557,-500.0,0.00054794,120]
[399022400,1766073960621,-747.87,0.00054794,120]
[399022402,1766073960680,-500.0,0.00054794,120]
[399022403,1766073960757,-759.84,0.00054794,120]
[399022405,1766073960835,-500.0,0.00054794,120]
[399022408,1766073960915,-500.0,0.00054794,120]
[399022409,1766073960994,-500.0,0.00054794,120]
[399022411,1766073961074,-500.0,0.00054794,120]
[399022414,1766073961154,-530.32,0.00054794,120]
[399022415,1766073961233,-500.0,0.00054794,120]
[399022417,1766073961312,-500.0,0.00054794,120]
[399022420,1766073961392,-717.47,0.00054794,120]
[399022421,1766073961472,-500.0,0.00054794,120]
[399022423,1766073961551,-500.0,0.00054794,120]
[399022425,1766073961630,-500.0,0.00054794,120]
[399022427,1766073961710,-500.0,0.00054794,120]
[399022429,1766073961785,-524.68,0.00054794,120]
[399022432,1766073961874,-500.0,0.00054794,120]
[399022434,1766073961942,-500.0,0.00054794,120]
[399022435,1766073962025,-500.0,0.00054794,120]
[399022437,1766073962108,-249.22069751,0.00054794,120]
[399022440,1766073962193,-510.63,0.00054794,120]
[399022441,1766073962276,-500.0,0.00054794,120]
[399022444,1766073962359,-607.77,0.00054794,120]
[399022445,1766073962439,-1890.73,0.00054794,120]
[399022448,1766073962526,-1675.2,0.00054794,120]
[399022449,1766073962607,-500.0,0.00054794,120]
[399022451,1766073962687,-500.0,0.00054794,120]
[399022454,1766073962771,-500.0,0.00054794,120]
[399022455,1766073962851,-1312.82,0.00054794,120]
[399022457,1766073962936,-755.01,0.00054794,120]
[399022459,1766073963018,-500.0,0.00054794,120]
[399022461,1766073963099,-500.0,0.00054794,120]
[399022464,1766073963184,-500.0,0.00054794,120]
[399022465,1766073963268,-414.0,0.00054794,120]
[399022467,1766073963351,-500.0,0.00054794,120]
[399022470,1766073963436,-429.318,0.00054794,120]
[399022471,1766073963519,-250.0,0.00054794,120]